bitfinex-derivatives/quotes_BTCF0:USTF0_20260107
["timestamp","ask_amount","ask_price","bid_price","bid_amount"]
[1767780160092,0.1243329,91680.0,91660.0,0.1243329]
[1767780160093,0.010915,91679.0,91660.0,0.09470948]
[1767780160291,0.010915,91679.0,91660.0,0.21904238]
[1767780160491,0.06121435,91688.0,91649.0,0.00218225]
[1767780160492,0.1243329,91670.0,91649.0,0.00218225]
[1767780160683,0.14830957,91672.0,91649.0,0.00218225]
[1767780160987,0.14830957,91672.0,91649.0,0.1452354]
[1767780160988,0.1243329,91670.0,91649.0,0.1452354]
[1767780161186,0.1243329,91670.0,91650.0,0.14305315]
[1767780161390,0.15922557,91672.0,91650.0,0.26738605]
[1767780161578,0.1243329,91670.0,91653.0,0.14305315]
[1767780162091,0.010916,91676.0,91653.0,0.14305315]
[1767780162286,0.04851513,91677.0,91650.0,0.1243329]
[1767780162287,0.06121435,91688.0,91663.0,0.04834367]
[1767780162486,0.04851513,91703.0,91672.0,0.09470948]
[1767780162487,0.010915,91684.0,91672.0,0.09470948]
[1767780162687,0.010915,91684.0,91649.0,0.00218225]
[1767780162688,0.010915,91686.0,91674.0,0.14305315]
[1767780162889,0.010915,91686.0,91669.0,0.04834367]
[1767780163492,0.1352469,91690.0,91670.0,0.1243329]
[1767780163794,0.1352469,91690.0,91670.0,0.26738605]
[1767780164392,0.010914,91688.0,91670.0,0.14305315]
[1767780164778,0.12425627,91690.0,91670.0,0.14305315]
[1767780164983,0.010914,91688.0,91670.0,0.09470948]
[1767780167085,0.14422357,91692.0,91670.0,0.09470948]
[1767780167293,0.010914,91688.0,91670.0,0.14305315]
[1767780167692,0.010914,91687.0,91670.0,0.14305315]
[1767780168495,0.010914,91691.0,91672.0,0.14305315]
[1767780168895,0.010914,91687.0,91672.0,0.14305315]
[1767780169493,0.05972599,91692.0,91672.0,0.09470948]
[1767780169494,0.10824112,91692.0,91672.0,0.09470948]
[1767780169793,0.010915,91685.0,91667.0,0.04834367]
[1767780170594,0.010915,91682.0,91666.0,0.09470948]
[1767780170796,0.09979444,91686.0,91664.0,0.14305315]
[1767780170996,0.09979444,91686.0,91666.0,0.14305315]
[1767780171798,0.010914,91692.0,91674.0,0.14305315]
[1767780172599,0.04851513,91697.0,91675.0,0.14305315]
[1767780172794,0.09979444,91699.0,91677.0,0.14305315]
[1767780173486,0.14830957,91699.0,91677.0,0.14305315]
[1767780173696,0.04851513,91698.0,91677.0,0.14305315]
[1767780173899,0.010914,91692.0,91677.0,0.09470948]
[1767780174900,0.010913,91695.0,91677.0,0.14305315]
[1767780175095,0.010913,91695.0,91681.0,0.14305315]
[1767780175700,0.04851513,91701.0,91681.0,0.09470948]
[1767780176002,0.44851513,91701.0,91681.0,0.09470948]
[1767780176497,0.09979444,91702.0,91681.0,0.14305315]
[1767780177292,0.010913,91696.0,91681.0,0.14305315]
[1767780177494,0.010913,91696.0,91682.0,0.14305315]
[1767780177898,0.010912,91704.0,91688.0,0.14305315]
[1767780178401,0.010912,91707.0,91688.0,0.14305315]
[1767780180402,0.010912,91707.0,91689.0,0.13403859]
[1767780180699,0.010912,91707.0,91660.0,0.12869652]
[1767780180700,0.06240429,91709.0,91690.0,0.13403859]
[1767780180900,0.010913,91702.0,91686.0,0.13403859]
[1767780181104,0.010913,91702.0,91673.0,0.010916]
[1767780181105,0.010913,91702.0,91687.0,0.13403859]
[1767780182802,0.010912,91706.0,91687.0,0.13403859]
[1767780183595,0.010912,91706.0,91688.0,0.14072174]
[1767780183791,0.05617193,91706.0,91688.0,0.09734715]
[1767780184001,0.010912,91706.0,91688.0,0.09734715]
[1767780184208,0.010912,91706.0,91688.0,0.14072174]
[1767780184415,0.06240429,91709.0,91688.0,0.14072174]
[1767780184705,0.010913,91702.0,91682.0,0.09734715]
[1767780184893,0.0993682,91704.0,91684.0,0.04337459]
[1767780185092,0.0993682,91704.0,91685.0,0.04337459]
[1767780185296,0.04525993,91707.0,91687.0,0.14072174]
[1767780185904,0.010912,91708.0,91689.0,0.04337459]
[1767780186703,0.05617193,91708.0,91688.0,0.09734715]
[1767780186903,0.010912,91706.0,91688.0,0.09734715]
[1767780188512,0.010912,91706.0,91688.0,0.14072174]
[1767780189218,0.010912,91706.0,91689.0,0.14072174]
[1767780189911,0.010912,91706.0,91691.0,0.04337459]
[1767780190215,0.05617293,91702.0,91683.0,0.09734715]
[1767780190407,0.010913,91700.0,91683.0,0.14072174]
[1767780191008,0.010913,91700.0,91684.0,0.04337459]
[1767780191608,0.04525993,91702.0,91683.0,0.09734715]
[1767780191908,0.010914,91688.0,91672.0,0.04337459]
[1767780192112,0.010914,91688.0,91670.0,0.09734715]
[1767780192417,0.0993682,91689.0,91665.0,0.09734715]
[1767780192612,0.0993682,91701.0,91678.0,0.14072174]
[1767780193010,0.010914,91693.0,91678.0,0.14072174]
[1767780193310,0.010913,91698.0,91685.0,0.14072174]
[1767780193515,0.010913,91698.0,91686.0,0.04337459]
[1767780193718,0.010912,91706.0,91686.0,0.04337459]
[1767780194215,0.010912,91703.0,91686.0,0.04337459]
[1767780194706,0.14462813,91708.0,91686.0,0.14072174]
[1767780194907,0.04525993,91707.0,91687.0,0.04337459]
[1767780195506,0.010913,91697.0,91687.0,0.04337459]
[1767780195811,0.010913,91697.0,91686.0,0.09734715]
[1767780196313,0.04525993,91707.0,91686.0,0.09734715]
[1767780196612,0.06240429,91709.0,91690.0,0.04337459]
[1767780196836,0.010912,91705.0,91692.0,0.14072174]
[1767780197115,0.010912,91705.0,91693.0,0.14072174]
[1767780197808,0.07331629,91709.0,91693.0,0.14072174]
[1767780198315,0.07331629,91709.0,91694.0,0.14072174]
[1767780199318,0.01309282,91709.0,91694.0,0.14072174]
[1767780200011,0.010912,91705.0,91694.0,0.14072174]
[1767780201623,0.01309282,91709.0,91694.0,0.14072174]
[1767780201824,0.00218082,91709.0,91694.0,0.14072174]
[1767780202025,0.010912,91705.0,91694.0,0.09734715]
[1767780202915,0.00218082,91709.0,91694.0,0.09734715]
[1767780202916,0.01309282,91709.0,91694.0,0.09734715]
[1767780203114,0.010912,91707.0,91694.0,0.14072174]
[1767780203314,0.00218082,91709.0,91694.0,0.14072174]
[1767780203514,0.00218082,91709.0,91696.0,0.04337459]
[1767780203718,0.00218082,91709.0,91696.0,0.14072174]
[1767780203920,0.00218082,91709.0,91697.0,0.14072174]
[1767780204220,0.00218082,91709.0,91700.0,0.04337459]
[1767780204419,0.04525993,91725.0,91701.0,0.04337459]
[1767780204623,0.010911,91719.0,91706.0,0.14072174]
[1767780205017,0.10439386,91725.0,91706.0,0.14072174]
[1767780205415,0.14462813,91724.0,91705.0,0.04337459]
[1767780205622,0.05913393,91725.0,91707.0,0.04337459]
[1767780205821,0.04525993,91728.0,91707.0,0.04337459]
[1767780206016,0.00218011,91739.0,91711.0,0.04337459]
[1767780206217,0.00218011,91739.0,91698.0,0.08664053]
[1767780206218,0.010907,91749.0,91719.0,0.04337459]
[1767780206424,0.010907,91750.0,91726.0,0.04337459]
[1767780206618,0.0993682,91753.0,91730.0,0.04337459]
[1767780206820,0.0993682,91753.0,91731.0,0.04337459]
[1767780206821,0.0968682,91753.0,91731.0,0.04337459]
[1767780207020,0.04525993,91761.0,91738.0,0.04337459]
[1767780207224,0.04525993,91765.0,91741.0,0.04337459]
[1767780207520,0.10634756,91769.0,91744.0,0.14072174]
[1767780207720,0.010905,91766.0,91746.0,0.04337459]
[1767780208121,0.0928,91789.0,91756.0,0.04337459]
[1767780208314,0.0928,91789.0,91726.0,0.01091]
[1767780208315,0.0928,91789.0,91758.0,0.04337459]
[1767780208518,0.0928,91789.0,91751.0,0.04337459]
[1767780208713,0.0993682,91780.0,91752.0,0.04337459]
[1767780208920,0.010904,91775.0,91753.0,0.04337459]
[1767780209227,0.1102712,91779.0,91754.0,0.04337459]
[1767780209625,0.1102712,91779.0,91755.0,0.04337459]
[1767780209828,0.0993682,91779.0,91756.0,0.04337459]
[1767780210031,0.0993682,91786.0,91765.0,0.04337459]
[1767780210328,0.103702,91789.0,91768.0,0.04337459]
[1767780210329,0.0993682,91788.0,91768.0,0.04337459]
[1767780210512,0.14462813,91809.0,91771.0,0.09734715]
[1767780210713,0.0109,91807.0,91779.0,0.09734715]
[1767780210913,0.14462813,91802.0,91768.0,0.04337459]
[1767780211118,0.0993682,91801.0,91768.0,0.04337459]
[1767780211316,0.0993682,91797.0,91768.0,0.04337459]
[1767780211520,0.010901,91796.0,91768.0,0.04337459]
[1767780211914,0.0993682,91797.0,91768.0,0.04337459]
[1767780212316,0.09176172,91792.0,91768.0,0.04337459]
[1767780212515,0.09276,91827.0,91768.0,0.04337459]
[1767780212516,0.4,91813.0,91768.0,0.04154949]
[1767780212719,0.09176172,91816.0,91770.0,0.04154949]
[1767780212720,0.13401811,91803.0,91770.0,0.04154949]
[1767780212922,0.0601501,91816.0,91770.0,0.04154949]
[1767780212923,0.09176172,91791.0,91770.0,0.04154949]
[1767780213130,0.010902,91790.0,91770.0,0.04154949]
[1767780213334,0.010902,91790.0,91752.0,0.08903914]
[1767780213335,0.010904,91771.0,91753.0,0.04154949]
[1767780213528,0.09176172,91774.0,91753.0,0.04154949]
[1767780213925,0.09276,91789.0,91753.0,0.04154949]
[1767780213926,0.09176172,91784.0,91753.0,0.04154949]
[1767780214627,0.09176172,91784.0,91755.0,0.04154949]
[1767780215035,0.09176172,91784.0,91756.0,0.04154949]
[1767780215325,0.1814,91870.0,91774.0,0.01215393]
[1767780215326,0.10266272,91803.0,91774.0,0.01215393]
[1767780215531,0.010902,91793.0,91777.0,0.02349927]
[1767780215725,0.010901,91798.0,91777.0,0.02349927]
[1767780215928,0.010901,91798.0,91777.0,0.01215393]
[1767780216133,0.010901,91798.0,91777.0,0.00715393]
[1767780216629,0.04225639,91804.0,91777.0,0.00215393]
[1767780216834,0.0109,91810.0,91776.0,0.00349927]
[1767780217023,0.09176172,91813.0,91777.0,0.010904]
[1767780217420,0.005,91816.0,91789.0,0.010902]
[1767780217626,0.09176172,91821.0,91762.0,0.010905]
[1767780217827,0.09176172,91819.0,91783.0,0.005903]
[1767780218026,0.09176172,91819.0,91788.0,0.010902]
[1767780218325,0.005,91821.0,91777.0,0.08798284]
[1767780218529,0.005,91821.0,91796.0,0.010901]
[1767780218730,0.005,91821.0,91794.0,0.00047138]
[1767780219036,0.005,91821.0,91793.0,0.00637338]
[1767780219239,0.010897,91834.0,91799.0,0.010901]
[1767780219422,0.01,91829.0,91804.0,0.00043314]
[1767780219624,0.09176172,91830.0,91777.0,0.08247026]
[1767780219824,0.09176172,91823.0,91757.0,0.010906]
[1767780220126,0.09276,91851.0,91772.0,0.010904]
[1767780220127,0.01,91822.0,91772.0,0.010904]
[1767780220336,0.010898,91824.0,91791.0,0.005902]
[1767780220527,0.01,91827.0,91798.0,0.010901]
[1767780220727,0.010898,91826.0,91767.0,0.010905]
[1767780220929,0.010898,91822.0,91787.0,0.005902]
[1767780221138,0.09176172,91827.0,91795.0,0.00061975]
[1767780221139,0.10265972,91827.0,91795.0,0.00061975]
[1767780221330,0.01,91826.0,91802.0,0.010901]
[1767780221639,0.010898,91823.0,91791.0,0.010902]
[1767780221841,0.010896,91842.0,91787.0,0.010902]
[1767780221842,0.010899,91817.0,91787.0,0.010902]
[1767780222235,0.010899,91813.0,91783.0,0.4]
[1767780222541,0.0109,91809.0,91779.0,0.010903]
[1767780222730,0.0109,91809.0,91779.0,0.005903]
[1767780222931,0.0109,91809.0,91780.0,0.4]
[1767780223234,0.09176172,91821.0,91775.0,0.010904]
[1767780223235,0.0109,91806.0,91775.0,0.010904]
[1767780223630,0.0109,91806.0,91775.0,0.005904]
[1767780223830,0.010901,91802.0,91773.0,0.010904]
[1767780224033,0.010901,91802.0,91773.0,0.005904]
[1767780224238,0.010901,91802.0,91752.0,0.010907]
[1767780224239,0.010901,91802.0,91762.0,0.50893958]
[1767780224436,0.010901,91802.0,91765.0,0.010905]
[1767780224632,0.010901,91802.0,91761.0,0.1771064]
[1767780224829,0.09176172,91819.0,91763.0,0.10894729]
[1767780225029,0.0109,91811.0,91764.0,0.010905]
[1767780225228,0.01,91828.0,91773.0,0.00022166]
[1767780225430,0.010898,91821.0,91794.0,0.010901]
[1767780225631,0.010898,91821.0,91796.0,0.010901]
[1767780225833,0.010899,91815.0,91795.0,0.1203]
[1767780226235,0.01,91814.0,91795.0,0.1203]
[1767780226538,0.00217797,91829.0,91796.0,0.1203]
[1767780226850,0.09176172,91828.0,91796.0,0.1203]
[1767780227043,0.010898,91822.0,91796.0,0.010901]
[1767780227342,0.010898,91822.0,91797.0,0.00062265]
[1767780227537,0.010898,91822.0,91800.0,0.00062265]
[1767780227745,0.00217797,91829.0,91803.0,0.0109]
[1767780227746,0.09393969,91829.0,91803.0,0.0109]
[1767780227935,0.09393969,91829.0,91804.0,0.00062265]
[1767780227936,0.010898,91824.0,91804.0,0.00062265]
[1767780228134,0.010898,91828.0,91805.0,0.4]
[1767780228333,0.00217797,91829.0,91794.0,0.010902]
[1767780228334,0.010898,91823.0,91794.0,0.010902]
[1767780228538,0.00217797,91829.0,91782.0,0.010903]
[1767780228539,0.00217797,91829.0,91796.0,0.010901]
[1767780228738,0.010898,91827.0,91799.0,0.010901]
[1767780229041,0.010898,91823.0,91795.0,1.5]
[1767780229240,0.010898,91822.0,91795.0,1.5]
[1767780229546,0.010899,91817.0,91795.0,1.5]
[1767780229847,0.010899,91817.0,91787.0,0.010902]
[1767780230244,0.010899,91814.0,91788.0,1.5]
[1767780230440,0.09176172,91816.0,91788.0,1.5]
[1767780230752,0.00217797,91829.0,91788.0,1.5]
[1767780230932,0.00217797,91829.0,91791.0,0.010902]
[1767780230933,0.10265972,91822.0,91791.0,0.010902]
[1767780231133,0.010899,91819.0,91791.0,0.010902]
[1767780231528,0.010899,91816.0,91788.0,1.5]
[1767780231738,0.010899,91818.0,91788.0,1.5]
[1767780231943,0.10266072,91818.0,91788.0,1.5]
[1767780232337,0.010899,91817.0,91788.0,1.510902]
[1767780232532,0.10266072,91817.0,91788.0,1.510902]
[1767780232728,0.010899,91817.0,91788.0,1.510902]
[1767780232935,0.09176172,91828.0,91790.0,0.14324359]
[1767780233435,0.09176172,91828.0,91798.0,0.010901]
[1767780234042,0.09176172,91828.0,91801.0,0.010901]
[1767780234238,0.09176172,91828.0,91790.0,0.14324359]
[1767780234439,0.10265972,91827.0,91798.0,0.010901]
[1767780234641,0.10265972,91827.0,91794.0,0.010902]
[1767780234939,0.09176172,91824.0,91794.0,0.010901]
[1767780235141,0.09176172,91828.0,91802.0,0.010901]
[1767780235342,0.09176172,91828.0,91798.0,0.010901]
[1767780235533,0.09176172,91828.0,91788.0,1.5]
[1767780235733,0.09176172,91828.0,91804.0,0.0109]
[1767780236539,0.010898,91827.0,91798.0,0.010901]
[1767780236739,0.09176172,91824.0,91798.0,0.010901]
[1767780237137,0.00217797,91829.0,91788.0,1.510902]
[1767780237351,0.00217797,91829.0,91805.0,0.0109]
[1767780238634,0.00217797,91829.0,91790.0,0.14324359]
[1767780238834,0.09393969,91829.0,91790.0,0.14324359]
[1767780239033,0.10265972,91827.0,91788.0,1.5]
[1767780239329,0.09176172,91822.0,91798.0,0.010901]
[1767780239947,0.09176172,91822.0,91804.0,0.0109]
[1767780240243,0.00217797,91829.0,91790.0,0.14324359]
[1767780240452,0.00217797,91829.0,91807.0,0.0109]
[1767780240744,0.00217797,91829.0,91800.0,0.14324359]
[1767780240939,0.0949444,91828.0,91790.0,0.14324359]
[1767780241142,0.1058434,91821.0,91797.0,0.010901]
[1767780241342,0.0949444,91821.0,91797.0,0.010901]
[1767780241850,0.010899,91820.0,91793.0,0.010902]
[1767780242042,0.010899,91820.0,91796.0,0.010901]
[1767780242238,0.1058424,91821.0,91796.0,0.010901]
[1767780242544,0.1058424,91821.0,91799.0,0.010901]
[1767780243248,0.010899,91818.0,91793.0,0.010902]
[1767780243437,0.010899,91818.0,91788.0,1.5881079]
[1767780243438,0.0973476,91812.0,91789.0,0.010902]
[1767780243640,0.0109,91808.0,91788.0,1.5]
[1767780243839,0.1082476,91812.0,91788.0,1.510902]
[1767780244345,0.0973476,91812.0,91788.0,1.510902]
[1767780244846,0.0973476,91812.0,91791.0,0.010902]
[1767780245046,0.0973476,91812.0,91788.0,1.5]
[1767780245246,0.0973476,91812.0,91789.0,0.010902]
[1767780247744,0.1082466,91812.0,91788.0,1.5]
[1767780248544,0.1082466,91812.0,91787.0,0.010902]
[1767780249355,0.0973476,91812.0,91790.0,0.010902]
[1767780249649,0.13853118,91810.0,91786.0,0.010902]
[1767780249841,0.0973476,91809.0,91786.0,0.010902]
[1767780250346,0.0973476,91809.0,91790.0,0.010902]
[1767780250650,0.0973476,91809.0,91784.0,0.01518623]
[1767780250651,0.1082476,91809.0,91784.0,0.01518623]
[1767780251443,0.1082476,91809.0,91786.0,0.010902]
[1767780251951,0.1082476,91806.0,91784.0,0.00428323]
[1767780252148,0.010901,91803.0,91778.0,0.00438165]
[1767780252345,0.010898,91821.0,91750.0,0.37076]
[1767780252346,0.04118358,91799.0,91759.0,0.00438165]
[1767780252543,0.0973476,91793.0,91764.0,0.00438165]
[1767780252944,0.1082496,91792.0,91766.0,0.00438165]
[1767780253146,0.0973476,91791.0,91766.0,0.00438165]
[1767780253748,0.13853118,91791.0,91766.0,0.00438165]
[1767780253949,0.0973476,91790.0,91766.0,0.00438165]
[1767780254142,0.0973476,91790.0,91775.0,0.010904]
[1767780254851,0.0973476,91790.0,91766.0,0.00438165]
[1767780256143,0.0973476,91790.0,91778.0,0.010903]
[1767780256551,0.0973476,91790.0,91772.0,0.010904]
[1767780256950,0.0973476,91790.0,91775.0,0.010904]
[1767780257552,0.0973476,91790.0,91774.0,0.010904]
[1767780257851,0.0973476,91790.0,91778.0,0.010903]
[1767780259351,0.0973476,91790.0,91774.0,0.010904]
[1767780260551,0.0973476,91790.0,91777.0,0.010904]
[1767780261357,0.0973476,91790.0,91767.0,0.00889785]
[1767780261555,0.0973476,91799.0,91781.0,0.010903]
[1767780261751,0.13853118,91799.0,91781.0,0.010903]
[1767780261956,0.13853118,91797.0,91781.0,0.010903]
[1767780262151,0.0973476,91796.0,91781.0,0.010903]
[1767780262748,0.0973476,91796.0,91777.0,0.010904]
[1767780263455,0.0973476,91796.0,91773.0,0.00905019]
[1767780263650,0.0973476,91796.0,91783.0,0.010903]
[1767780264050,0.0973476,91802.0,91787.0,0.010902]
[1767780264253,0.0973476,91802.0,91790.0,0.12394308]
[1767780265260,0.0973476,91802.0,91794.0,0.010902]
[1767780265449,0.0973476,91809.0,91792.0,0.010902]
[1767780265654,0.13853118,91807.0,91784.0,0.010903]
[1767780265959,0.0973476,91805.0,91784.0,0.010903]
[1767780266153,0.0973476,91805.0,91790.0,0.12394308]
[1767780266557,0.0973476,91805.0,91784.0,0.010903]
[1767780266751,0.0973476,91805.0,91787.0,0.010902]
[1767780267151,0.0973476,91800.0,91782.0,0.010903]
[1767780267350,0.0973476,91800.0,91780.0,0.12394308]
[1767780267552,0.0973476,91800.0,91781.0,0.010903]
[1767780267753,0.0973476,91797.0,91784.0,0.010903]
[1767780267953,0.0109,91807.0,91789.0,0.010902]
[1767780267954,0.13853118,91803.0,91789.0,0.010902]
[1767780268154,0.0973476,91802.0,91785.0,0.010903]
[1767780269261,0.0973476,91802.0,91780.0,0.12394042]
[1767780269262,0.0973476,91802.0,91787.0,0.010902]
[1767780269457,0.0973476,91802.0,91780.0,0.12394042]
[1767780269458,0.0973476,91802.0,91783.0,0.010903]
[1767780270161,0.0973476,91802.0,91785.0,0.010903]
[1767780270663,0.0973476,91800.0,91785.0,0.010903]
[1767780271161,0.0973476,91800.0,91787.0,0.010902]
[1767780271660,0.010899,91817.0,91775.0,0.00915231]
[1767780271860,0.03726622,91814.0,91791.0,0.09156371]
[1767780272055,0.010896,91841.0,91801.0,0.010901]
[1767780272056,0.03726622,91819.0,91801.0,0.010901]
[1767780272957,0.010896,91841.0,91790.0,0.14326322]
[1767780272958,0.03726622,91828.0,91793.0,0.09156371]
[1767780273161,0.03726622,91824.0,91802.0,0.010901]
[1767780273762,0.09984847,91817.0,91796.0,0.010901]
[1767780273960,0.09984847,91809.0,91787.0,0.09156371]
[1767780274156,0.14326322,91830.0,91780.0,0.14326322]
[1767780274157,0.09984847,91804.0,91780.0,0.09156371]
[1767780274357,0.09984847,91802.0,91787.0,0.010902]
[1767780275164,0.09984847,91802.0,91789.0,0.010902]
[1767780275468,0.09984847,91802.0,91781.0,0.09156371]
[1767780275767,0.09984847,91812.0,91787.0,0.09156371]
[1767780276066,0.09984847,91812.0,91763.0,0.05909136]
[1767780276067,0.03726622,91792.0,91767.0,0.010905]
[1767780276267,0.09984847,91789.0,91767.0,0.08907015]
[1767780276565,0.09984847,91789.0,91775.0,0.010904]
[1767780276867,0.09984847,91789.0,91774.0,0.010904]
[1767780277166,0.09984847,91789.0,91776.0,0.010904]
[1767780277666,0.09984847,91789.0,91772.0,0.010904]
[1767780277858,0.09984847,91789.0,91764.0,0.09156371]
[1767780277859,0.09984847,91789.0,91775.0,0.010904]
[1767780278463,0.09984847,91789.0,91764.0,0.09156371]
[1767780278464,0.09984847,91789.0,91774.0,0.010904]
[1767780279459,0.09984847,91789.0,91776.0,0.010904]
[1767780279664,0.13711469,91789.0,91770.0,0.010904]
[1767780279968,0.13711469,91789.0,91773.0,0.010904]
[1767780280170,0.09984847,91789.0,91773.0,0.010904]
[1767780280570,0.09984847,91789.0,91769.0,0.010905]
[1767780281461,0.09984847,91789.0,91772.0,0.010904]
[1767780282555,0.09984847,91789.0,91775.0,0.010904]
[1767780285063,0.09984847,91789.0,91767.0,0.17901137]
[1767780285262,0.09984847,91789.0,91768.0,0.09156371]
[1767780285666,0.09984847,91801.0,91771.0,0.09156371]
[1767780285871,0.09984847,91801.0,91785.0,0.010903]
[1767780286168,0.09984847,91801.0,91779.0,0.09156371]
[1767780286369,0.13711469,91806.0,91779.0,0.09156371]
[1767780286567,0.13711469,91805.0,91790.0,0.010902]
[1767780287162,0.09984847,91813.0,91790.0,0.09156371]
[1767780287474,0.09984847,91808.0,91794.0,0.010902]
[1767780287665,0.13711469,91799.0,91789.0,0.010902]
[1767780287964,0.09984847,91799.0,91789.0,0.010902]
[1767780288165,0.103579,91817.0,91798.0,0.010901]
[1767780288371,0.09268,91817.0,91798.0,0.010901]
[1767780288668,0.010899,91816.0,91798.0,0.010901]
[1767780289470,0.010899,91813.0,91791.0,0.02875549]
[1767780289675,0.010899,91813.0,91792.0,0.010902]
[1767780289864,0.010897,91835.0,91793.0,0.02875549]
[1767780290168,0.03726622,91818.0,91799.0,0.010901]
[1767780290362,0.13711469,91813.0,91795.0,0.010901]
[1767780290666,0.13711469,91810.0,91789.0,0.02827247]
[1767780290867,0.13711469,91797.0,91775.0,0.22886685]
[1767780291173,0.09984847,91811.0,91791.0,0.010902]
[1767780291375,0.13711469,91804.0,91791.0,0.010902]
[1767780291564,0.13711469,91804.0,91794.0,0.010902]
[1767780292171,0.13711469,91804.0,91788.0,0.010902]
[1767780292472,0.01307497,91829.0,91788.0,0.010902]
[1767780292473,0.13711469,91807.0,91788.0,0.010902]
[1767780292673,0.13711469,91805.0,91787.0,0.10246571]
[1767780292867,0.13711469,91804.0,91787.0,0.10246571]
[1767780293073,0.13711469,91804.0,91790.0,0.010902]
[1767780293872,0.13711469,91804.0,91791.0,0.010902]
[1767780294176,0.13711469,91803.0,91788.0,0.010902]
[1767780294378,0.13711469,91803.0,91790.0,0.010902]
[1767780295267,0.13711469,91809.0,91792.0,0.010902]
[1767780295766,0.13711469,91808.0,91792.0,0.010902]
[1767780295962,0.13711469,91808.0,91787.0,0.09156371]
[1767780296171,0.13711469,91800.0,91787.0,0.10246571]
[1767780296366,0.13711469,91796.0,91787.0,0.10246571]
[1767780296569,0.09984847,91796.0,91787.0,0.010902]
[1767780296975,0.03726622,91801.0,91787.0,0.010902]
[1767780297379,0.09984847,91800.0,91783.0,0.010903]
[1767780297582,0.09984847,91799.0,91779.0,0.11154611]
[1767780297785,0.13711469,91803.0,91788.0,0.010902]
[1767780299183,0.13711469,91802.0,91788.0,0.010902]
[1767780300180,0.12933355,91800.0,91780.0,0.010903]
[1767780300484,0.12933355,91796.0,91781.0,0.010903]
[1767780300980,0.03576742,91792.0,91769.0,0.11055305]
[1767780301183,0.03576742,91792.0,91770.0,0.01902571]
[1767780301376,0.03576742,91804.0,91779.0,0.01845866]
[1767780301575,0.10446613,91807.0,91789.0,0.010902]
[1767780301775,0.08689376,91807.0,91789.0,0.010902]
[1767780301980,0.07599376,91807.0,91788.0,0.010902]
[1767780302278,0.11166082,91807.0,91788.0,0.010902]
[1767780302580,0.03566706,91806.0,91788.0,0.010902]
[1767780302769,0.0109,91805.0,91784.0,0.11264393]
[1767780303167,0.03566706,91805.0,91785.0,0.010903]
[1767780303368,0.03566706,91801.0,91777.0,0.09463404]
[1767780303573,0.03566706,91793.0,91771.0,0.010904]
[1767780303767,0.13137828,91783.0,91760.0,0.01857811]
[1767780303975,0.13137828,91783.0,91769.0,0.010905]
[1767780304372,0.13137828,91783.0,91775.0,0.010904]
[1767780304577,0.010901,91797.0,91775.0,0.010904]
[1767780305078,0.01307597,91829.0,91779.0,0.010903]
[1767780305284,0.010899,91818.0,91779.0,0.010903]
[1767780305777,0.010901,91803.0,91776.0,0.010904]
[1767780306075,0.010901,91803.0,91777.0,0.1203]
[1767780306476,0.03566706,91801.0,91778.0,0.010903]
[1767780306776,0.010898,91823.0,91777.0,0.1203]
[1767780306777,0.03566706,91797.0,91777.0,0.1203]
[1767780306977,0.03566706,91797.0,91777.0,0.131204]
[1767780308785,0.03566706,91804.0,91780.0,0.010903]
[1767780308980,0.03566706,91804.0,91781.0,0.09463404]
[1767780309183,0.03566706,91804.0,91782.0,0.10553704]
[1767780309483,0.03566706,91801.0,91780.0,0.010903]
[1767780309686,0.03566706,91798.0,91780.0,0.010903]
[1767780309986,0.03566706,91797.0,91780.0,0.010903]
[1767780310487,0.03566706,91797.0,91781.0,0.1203]
[1767780311788,0.03566706,91795.0,91781.0,0.1203]
[1767780311986,0.09571122,91796.0,91781.0,0.1203]
[1767780312193,0.03566706,91800.0,91782.0,0.010903]
[1767780312380,0.09571122,91819.0,91785.0,0.13095566]
[1767780312689,0.09571122,91819.0,91805.0,0.0109]
[1767780313081,0.09571122,91819.0,91801.0,0.010901]
[1767780314388,0.13137828,91818.0,91801.0,0.010901]
[1767780314590,0.010898,91825.0,91794.0,0.09463404]
[1767780314591,0.03566706,91816.0,91797.0,0.010901]
[1767780314992,0.03566706,91815.0,91800.0,0.010901]
[1767780316187,0.03566706,91815.0,91795.0,0.010901]
[1767780316393,0.03566706,91815.0,91797.0,0.010901]
[1767780316577,0.13137828,91815.0,91796.0,0.1203]
[1767780316783,0.03566706,91810.0,91796.0,0.1203]
[1767780317184,0.09571122,91811.0,91796.0,0.1203]
[1767780317390,0.09571122,91818.0,91796.0,0.1203]
[1767780317693,0.13137828,91818.0,91796.0,0.1203]
[1767780317992,0.03566706,91816.0,91798.0,0.010901]
[1767780318588,0.03566706,91815.0,91796.0,0.131201]
[1767780318789,0.03566706,91815.0,91798.0,0.010901]
[1767780319791,0.03566706,91815.0,91800.0,0.010901]
[1767780320791,0.09571122,91816.0,91796.0,0.1203]
[1767780320984,0.09571122,91822.0,91798.0,0.09463404]
[1767780321184,0.09571122,91822.0,91804.0,0.0109]
[1767780321380,0.03566706,91821.0,91801.0,0.010901]
[1767780322296,0.03566706,91819.0,91799.0,0.1203]
[1767780322496,0.13137828,91809.0,91799.0,0.1203]
[1767780322798,0.09571122,91809.0,91796.0,0.010901]
[1767780323200,0.03566706,91813.0,91800.0,0.010901]
[1767780324200,0.03566706,91813.0,91796.0,0.010901]
[1767780325098,0.03566706,91813.0,91798.0,0.010901]
[1767780325596,0.10660922,91823.0,91799.0,0.09463404]
[1767780325788,0.010898,91822.0,91799.0,0.09463404]
[1767780325994,0.010898,91822.0,91803.0,0.0109]
[1767780326189,0.03566706,91821.0,91803.0,0.0109]
[1767780326387,0.13137828,91821.0,91800.0,0.010901]
[1767780327500,0.13137828,91821.0,91799.0,0.09463404]
[1767780327899,0.13137828,91820.0,91799.0,0.09463404]
[1767780328102,0.03566706,91808.0,91788.0,0.08785117]
[1767780328401,0.13137828,91805.0,91790.0,0.010902]
[1767780328703,0.13137828,91817.0,91796.0,0.010901]
[1767780328884,0.00217797,91829.0,91791.0,0.13095566]
[1767780328885,0.13137828,91812.0,91793.0,0.010902]
[1767780329090,0.03566706,91811.0,91796.0,0.010901]
[1767780329291,0.03566706,91811.0,91795.0,0.010901]
[1767780329491,0.03566706,91811.0,91797.0,0.010901]
[1767780329699,0.03566706,91811.0,91788.0,0.14185766]
[1767780330005,0.03566706,91811.0,91800.0,0.010901]
[1767780330299,0.13137828,91813.0,91795.0,0.010901]
[1767780330492,0.13137828,91813.0,91797.0,0.010901]